lending/lending_fUSD_20240522
["ID","MTS","AMOUNT","RATE_DAILY","PERIOD"]
[327723438,1716382245442,-159.36999109,0.00025225,2]
[327723439,1716382245452,-158.89683256,0.00025225,2]
[327723440,1716382245462,-160.36674768,0.00025272,2]
[327723441,1716382245471,-155.46791382,0.0002529,2]
[327723442,1716382245481,-151.8895225,0.00025318,2]
[327723443,1716382245490,-152.98488687,0.00025335,2]
[327723444,1716382245502,-489.06642785,0.00025336,2]
[327723445,1716382245513,-256.7607952,0.00025426,2]
[327723446,1716382245526,-489.06642785,0.00025441,2]
[327723447,1716382245536,-251.10652522,0.00025466,2]
[327723448,1716382245546,-100.30329884,0.00025469,2]
[327723449,1716382245560,-52.68158803,0.00025469,2]
[327723450,1716382245570,-151.8895225,0.00025494,2]
[327723451,1716382245579,-150.0,0.000255,4]
[327723452,1716382245592,-417.15771221,0.0002551,2]
[327723453,1716382245603,-152.98488687,0.00025522,2]
[327723454,1716382245612,-166.66666665,0.00025547,2]
[327723455,1716382245621,-2467.49464349,0.00025554,2]
[327723456,1716382245631,-489.06642785,0.00025557,2]
[327723457,1716382245640,-151.97205109,0.00025598,2]
[327723458,1716382245650,-251.10652522,0.00025662,2]
[327723459,1716382245659,-3293.66028499,0.00025664,2]
[327723460,1716382245669,-159.36999109,0.00025703,2]
[327723461,1716382245678,-154.49054118,0.00025738,2]
[327723462,1716382245688,-235.18716122,0.00025741,2]
[327723463,1716382245698,-151.8895225,0.00025752,2]
[327723464,1716382245707,-320.25913487,0.00025753,2]
[327723469,1716382245855,-324.93838667,0.00017258,2]
[327723471,1716382245864,-665.94320295,0.00017258,2]
[327723474,1716382245951,-715.27182708,0.00017258,2]
[327723475,1716382245961,-155.25897632,0.00017258,2]
[327723476,1716382245970,-1365.58025694,0.00024795,2]
[327723477,1716382246231,945.54619917,0.00012799,2]
[327723478,1716382246693,-258.22215256,0.00015,2]
[327723479,1716382246703,-1736.81182297,0.00016742,2]
[327723480,1716382246712,-309.10073101,0.00024794,2]
[327723481,1716382246805,-884.887276,0.00024794,2]
[327723482,1716382246817,-264.4399855,0.00024794,2]
[327723483,1716382246837,-699.27,0.00024794,2]
[327723484,1716382246858,-2586.5518851,0.00024794,2]
[327723485,1716382246867,-734.41974306,0.00024795,2]
[327723486,1716382246877,-357.05710173,0.00025,7]
[327723487,1716382247611,1979.71185794,0.00012799,2]
[327723488,1716382250354,162.34639192,0.00012799,10]
[327723489,1716382257410,792.85863844,0.00012699,2]
[327723490,1716382257432,4000.0,0.00012699,2]
[327723491,1716382257455,4000.0,0.00012699,2]
[327723492,1716382257477,3477.60036156,0.00012699,2]
[327723493,1716382263966,298.78407833,0.00012799,2]
[327723495,1716382305662,10000.0,0.00031,120]
[327723497,1716382330323,10000.0,0.00031,120]
[327723501,1716382525888,-167.28,0.00012149,2]
[327723502,1716382525913,-432.72,0.00012225,2]
[327723503,1716382558363,589.4,0.00031,120]
[327723504,1716382600891,11365.10773049,0.00011981,2]
[327723505,1716382605979,11365.10773048,0.00011982,2]
[327723506,1716382610893,11365.10773048,0.00011982,2]
[327723507,1716382649582,389.052554,0.0001195,2]
[327723508,1716382663244,7950.832389,0.00011949,2]
[327723509,1716382663314,168.58,0.00010959,2]
[327723510,1716382668934,970.76435009,0.0001195,2]
[327723511,1716382669669,30595.64504379,0.0001195,2]
[327723512,1716382669694,517130.24523555,0.0001195,2]
[327723513,1716382673811,842.91,0.00010959,2]
[327723514,1716382675096,155.25525676,0.00011426,2]
[327723515,1716382676530,2548.44455282,8.963e-05,2]
[327723516,1716382677539,1105.89067804,0.00011353,2]
[327723517,1716382677805,549.28468944,0.0001195,2]
[327723518,1716382678606,2605.38794838,0.00012,2]
[327723519,1716382678867,7520.30716541,0.0001195,2]
[327723520,1716382679311,19734.40747855,0.0001195,2]
[327723521,1716382680369,665.02362507,0.00011426,2]
[327723522,1716382680848,250.63093548,0.0001195,2]
[327723523,1716382681185,409.86295543,0.0001195,2]
[327723524,1716382681577,423.50395095,0.00011426,2]
[327723525,1716382682675,179.76461893,0.0001195,2]
[327723526,1716382682799,155.0,0.0001195,2]
[327723527,1716382682984,188.19549279,0.0001195,2]
[327723528,1716382686193,15220.6056,0.00011981,2]
[327723529,1716382688767,20224.52025968,0.0001195,2]
[327723530,1716382691644,547725.89027934,0.0001195,2]
[327723531,1716382693128,2213.31,0.0001183,2]
[327723532,1716382694250,484.21262387,8.963e-05,2]
[327723533,1716382696620,2603.97641468,0.00012,2]
[327723534,1716382696865,7520.30716541,0.0001195,2]
[327723535,1716382697752,548.38400721,0.0001195,2]
[327723536,1716382700819,155.0,0.0001195,2]
[327723537,1716382700910,20224.52025968,0.0001195,2]
[327723538,1716382701066,17446.98915025,0.0001195,2]
[327723539,1716382705122,411.96327751,0.0001195,2]
[327723540,1716382711709,323480.03236272,0.0001195,2]
[327723541,1716382711743,224245.85791662,0.0001195,2]
[327723542,1716382714876,7520.30716541,0.0001195,2]
[327723543,1716382716768,155.96100922,0.0001195,2]
[327723544,1716382720254,439.08,0.00011843,2]
[327723545,1716382722479,180.23015503,0.0001195,2]
[327723546,1716382724811,20224.52025968,0.0001195,2]
[327723547,1716382726118,467.77,0.00011843,2]
[327723548,1716382729733,547725.89027934,0.0001195,2]
[327723549,1716382731028,7520.30716541,0.0001195,2]
[327723550,1716382731080,1270.54086291,0.00011902,2]
[327723551,1716382736656,-150.0,0.00012,2]
[327723552,1716382738282,180.23015503,0.0001195,2]
[327723553,1716382739155,-150.0,0.00012,2]
[327723554,1716382739668,-150.0,0.00012,2]
[327723555,1716382742794,20224.52025968,0.0001195,2]
[327723556,1716382744189,1248.98663554,0.00011999,2]
[327723557,1716382744757,2919.23173604,0.00011999,2]
[327723558,1716382748885,7520.30716541,0.0001195,2]
[327723559,1716382748956,162.1041266,0.00011999,2]
[327723560,1716382749678,547725.89027934,0.0001195,2]
[327723561,1716382751426,326.03857362,0.00011999,2]
[327723562,1716382755898,155.0,0.00011999,2]
[327723563,1716382756297,180.23015503,0.0001195,2]
[327723564,1716382757725,308.97,9.986e-05,2]
[327723565,1716382758794,20224.52025968,0.0001195,2]
[327723566,1716382760287,2813.98016787,0.00011999,2]
[327723567,1716382761963,208.73179113,0.00011999,2]
[327723568,1716382763374,452.09796917,0.00011999,2]
[327723569,1716382763964,290.49111207,0.00011999,2]
[327723570,1716382764934,7520.30716541,0.0001195,2]
[327723571,1716382765086,9677.16,0.00011916,2]
[327723572,1716382767883,250.0,0.00011889,2]
[327723573,1716382771662,547725.89027934,0.0001195,2]
[327723574,1716382773966,378.22988571,0.00011999,2]
[327723575,1716382774279,180.23015503,0.0001195,2]
[327723576,1716382776147,380.39,0.00011828,2]
[327723577,1716382776824,20224.52025968,0.0001195,2]
[327723578,1716382780482,234.32529756,0.00011999,2]
[327723579,1716382781376,451.88697417,0.00010698,2]
[327723580,1716382783160,1220.31157309,0.00011999,2]
[327723581,1716382783216,1273.20131825,0.00011999,2]
[327723582,1716382791663,547725.89027934,0.00011999,2]
[327723583,1716382794807,20224.52025968,0.00011999,2]
[327723584,1716382798280,180.23015503,0.00011999,2]
[327723585,1716382809660,502425.87178805,0.00011999,2]
[327723586,1716382812788,20224.52025968,0.00011999,2]
[327723587,1716382816284,215.41864565,0.00011999,2]
[327723588,1716382830303,158.21,0.00011988,2]
[327723589,1716382830462,2555.76,0.00011876,2]
[327723590,1716382830536,158.21,0.00011997,2]
[327723591,1716382830905,20224.52025968,0.00011999,2]
[327723592,1716382852799,8544.56928314,0.00011999,2]
[327723593,1716382855238,150.0,0.00011565,2]
[327723594,1716382866152,2767.35,0.00011565,2]
[327723596,1716382915112,984.0618,0.00011903,2]
[327723597,1716382929168,204.9501833,0.00012,2]
[327723598,1716382934664,267.89346007,0.00012,2]
[327723599,1716382936427,162.1041266,0.00012,2]
[327723600,1716382936586,-290.49111207,0.00012001,2]
[327723601,1716382936609,-3285.77643226,0.00012001,2]
[327723602,1716382936631,-2076.93245567,0.00012002,2]
[327723603,1716382952349,1852.42,0.00011604,2]
[327723604,1716382969578,-326.03857362,0.00012001,2]
[327723605,1716382969601,-3673.96142638,0.00012005,2]
[327723606,1716382970143,-4000.0,0.00012005,2]
[327723607,1716382970838,-4000.0,0.00012005,2]
[327723608,1716382971322,939.58666517,0.00012,2]
[327723609,1716382978012,438.00424512,0.00011906,2]
[327723610,1716382978841,2056.2,0.0001163,2]
[327723611,1716382993075,-2772.43756071,0.00012005,2]
[327723612,1716382993097,-158.21,0.00012006,2]
[327723613,1716382993119,-1069.35243929,0.00012007,2]
[327723614,1716383042972,187.5,0.00011756,2]
[327723615,1716383044249,324.73,0.00011756,2]
[327723616,1716383072842,869.18,0.00011844,2]
[327723617,1716383096759,182.35,9.4e-05,2]
[327723618,1716383120683,204.9501833,0.00012,2]
[327723619,1716383121822,157.42,0.00011902,2]
[327723620,1716383122330,200.0,0.00011813,2]
[327723621,1716383153840,12278.56,0.00011813,2]
[327723622,1716383168348,1147.02,0.00011813,2]
[327723623,1716383168452,925.11,0.00011813,2]
[327723624,1716383180158,500.0,0.0001175,2]
[327723627,1716383239710,303.8,9.949e-05,2]
[327723628,1716383243635,701.298,0.00031,120]
[327723629,1716383272180,250.0,0.00011812,2]
[327723630,1716383307889,250.0,0.00011812,2]
[327723631,1716383362339,1703.5,0.00011874,2]
[327723632,1716383372662,695.68,0.00011874,2]
[327723633,1716383412823,154.00800825,0.00011914,2]
[327723638,1716383432627,-326.03857362,0.00012006,2]
[327723640,1716383432640,-764.64756071,0.00012007,2]
[327723642,1716383432650,-158.21,0.00012014,2]
[327723644,1716383432660,-150.0,0.00012019,2]
[327723645,1716383432670,-300.0,0.00012019,2]
[327723646,1716383432680,-155.7423807,0.0001202,2]
[327723647,1716383432690,-264.52157603,0.0001202,2]
[327723648,1716383432700,-377.6473428,0.0001202,2]
[327723649,1716383432710,-234.18677311,0.0001202,2]
[327723650,1716383432720,-599.06685493,0.0001202,2]
[327723651,1716383432730,-123.52005548,0.0001202,2]
[327723652,1716383432760,-144.23739223,0.0001202,2]
[327723653,1716383432770,-156.37697449,0.0001202,2]
[327723654,1716383432780,-653.8183585,0.0001202,2]
[327723655,1716383432791,-2259.59130948,0.0001202,2]
[327723656,1716383432801,-266.37775055,0.0001202,2]
[327723657,1716383432811,-205.01985973,0.00012021,2]
[327723658,1716383432821,-23900.0,0.00012022,2]
[327723659,1716383432830,-158.21,0.00012023,2]
[327723660,1716383432840,-158.21,0.00012031,2]
[327723661,1716383432850,-352.51,0.0001204,2]
[327723662,1716383432865,-999.99,0.0001204,2]
[327723663,1716383432875,-158.21,0.0001204,2]
[327723664,1716383432886,-158.21,0.00012049,2]
[327723665,1716383432896,-1356.52,0.00012109,2]
[327723666,1716383432906,-499.99,0.00012148,2]
[327723667,1716383432916,-303.8,0.00012213,2]
[327723668,1716383432926,-168.45,0.00012289,2]
[327723669,1716383432936,-683.73446639,0.00012632,2]
[327723670,1716383432949,-4598.04156785,0.00012684,2]
[327723671,1716383432959,-2230.00157091,0.00012686,2]
[327723672,1716383432968,-7852.03221917,0.00012695,2]
[327723673,1716383432978,-202.82655771,0.00012696,2]
[327723674,1716383432988,-155.0,0.00012696,2]
[327723675,1716383432999,-783.92652649,0.00012696,2]
[327723676,1716383433008,-541.03648628,0.00012696,2]
[327723677,1716383433019,-523.52991254,0.00012696,2]
[327723679,1716383433028,-157.77334761,0.00012696,2]
[327723681,1716383433037,-2329.28437138,0.00012696,2]
[327723683,1716383433047,-623.69279949,0.00012696,2]
[327723685,1716383433057,-526.01309197,0.00012696,2]
[327723687,1716383433066,-361.15095977,0.00012696,2]
[327723689,1716383433076,-686.40083079,0.00012696,2]
[327723691,1716383433085,-167.92658219,0.00012696,2]
[327723693,1716383433095,-155.0,0.00012696,2]
[327723695,1716383433104,-155.0,0.00012696,2]
[327723697,1716383433114,-4429.92406369,0.00012696,2]
[327723699,1716383433123,-4181.57941084,0.00012696,2]
[327723701,1716383433135,-1291.36098914,0.00012697,2]
[327723703,1716383433144,-35766.16531984,0.00012698,2]
[327723704,1716383433154,-1000.0,0.00013,2]
[327723705,1716383433163,-9678.03,0.00013216,2]
[327723706,1716383433173,-1258.1774,0.00013216,2]
[327723707,1716383433183,-210.0,0.00013221,2]
[327723708,1716383433193,-6891.47046359,0.00013305,2]
[327723709,1716383433207,-326.1133765,0.00013305,2]
[327723710,1716383433216,-380.39,0.00013307,2]
[327723711,1716383433226,-246.65442859,0.00013315,2]
[327723712,1716383433237,-155.0,0.00013315,2]
[327723713,1716383433247,-155.6979392,0.00013315,2]
[327723714,1716383433258,-262.76725722,0.00013315,2]
[327723715,1716383433269,-250.10468562,0.00013315,2]
[327723716,1716383433281,-19636.60235343,0.00013315,2]
[327723717,1716383433292,-155.68805479,0.00013315,2]
[327723718,1716383433302,-155.94663449,0.00013315,2]
[327723719,1716383433313,-272016.52971326,0.00013316,2]
[327723720,1716383433552,-13642.51535786,0.00013316,2]
[327723721,1716383433587,-3274.98425749,0.00013316,2]
[327723722,1716383433600,-3486.23676,0.00013316,2]
[327723723,1716383433614,-4247.513,0.00013316,2]
[327723752,1716383438210,-59824.42867987,0.00013316,2]
[327723753,1716383438220,-695.68,0.00013359,2]
[327723754,1716383438229,-171.94,0.00013405,2]
[327723755,1716383438239,-536.62,0.00013413,2]
[327723756,1716383438249,-536.62,0.00013417,2]
[327723757,1716383438258,-536.62,0.0001342,2]
[327723758,1716383438267,-536.62,0.00013424,2]
[327723759,1716383438276,-536.62,0.00013428,2]
[327723760,1716383438286,-536.62,0.00013431,2]
[327723761,1716383438295,-536.62,0.00013435,2]
[327723762,1716383438305,-536.62,0.00013438,2]
[327723763,1716383438314,-536.62,0.00013442,2]
[327723764,1716383438324,-536.62,0.00013445,2]
[327723765,1716383438334,-536.62,0.00013449,2]
[327723766,1716383438344,-536.62,0.00013452,2]
[327723767,1716383438353,-536.62,0.00013456,2]
[327723768,1716383438363,-536.62,0.00013459,2]
[327723769,1716383438373,-536.62,0.00013463,2]
[327723770,1716383438385,-536.62,0.00013466,2]
[327723771,1716383438395,-536.62,0.0001347,2]
[327723772,1716383438404,-536.62,0.00013474,2]
[327723773,1716383438413,-536.62,0.00013477,2]
[327723774,1716383438422,-536.62,0.00013481,2]
[327723775,1716383438432,-200.0,0.00013699,2]
[327723776,1716383438441,-1232.47,0.00013699,2]
[327723777,1716383438451,-2187.62154477,0.00013829,2]
[327723778,1716383438460,-169.3,0.00013973,2]
[327723779,1716383438470,-346.04,0.00013973,2]
[327723780,1716383438480,-182.35,0.000141,2]
[327723781,1716383438489,-171.94,0.00014116,2]
[327723782,1716383438499,-303.8,0.00014476,2]
[327723783,1716383438508,-769.164027,0.00014521,2]
[327723784,1716383438518,-293.0,0.00014543,2]
[327723786,1716383438527,-1703.5,0.00014614,2]
[327723788,1716383438537,-380.39,0.00014785,2]
[327723789,1716383438546,-171.94,0.00014827,2]
[327723790,1716383438555,-695.68,0.00014843,2]
[327723791,1716383438564,-225.26857882,0.00015,2]
[327723792,1716383438574,-8092.39759761,0.00015,2]
[327723794,1716383438584,-155.0,0.00015,2]
[327723796,1716383438594,-150.49,0.00015068,2]
[327723798,1716383438604,-769.164027,0.00015342,2]
[327723800,1716383438613,-171.94,0.00015538,2]
[327723802,1716383438623,-2303.0,0.000156,2]
[327723804,1716383438634,-171.33,0.00015831,2]
[327723806,1716383438643,-411.0,0.00015998,2]
[327723808,1716383438654,-769.164027,0.00016164,2]
[327723811,1716383438664,-171.94,0.00016249,2]
[327723813,1716383438674,-380.39,0.00016264,2]
[327723815,1716383438683,-6891.47046359,0.00016282,2]
[327723817,1716383438693,-695.68,0.00016327,2]
[327723819,1716383438703,-150.49,0.00016438,2]
[327723821,1716383438713,-7454.65,0.00016438,2]
[327723823,1716383438723,-326.11337643,0.00016461,2]
[327723825,1716383438732,-171.33,0.00016484,2]
[327723827,1716383438742,-179.04,0.00016712,2]
[327723829,1716383438751,-321.34456172,0.00016739,2]
[327723831,1716383438761,-365.790354,0.00016739,2]
[327723833,1716383438771,-271.53784341,0.00016739,2]
[327723835,1716383438780,-275.50152538,0.00016739,2]
[327723837,1716383438790,-483.2796384,0.00016739,2]
[327723839,1716383438799,-155.79798778,0.00016739,2]
[327723841,1716383438809,-468.08328228,0.00016739,2]
[327723843,1716383438819,-306.53932748,0.00016739,2]
[327723845,1716383438828,-155.0,0.00016739,2]
[327723847,1716383438838,-12950.62040373,0.00016739,2]
[327723849,1716383438847,-175.91087018,0.00016739,2]
[327723851,1716383438857,-293.01514852,0.00016739,2]
[327723853,1716383438871,-155.96690999,0.00016739,2]
[327723855,1716383438880,-155.5415253,0.00016739,2]
[327723857,1716383438895,-155.0,0.00016739,2]
[327723859,1716383438907,-157.82420216,0.00016739,2]
[327723861,1716383438916,-726.23771159,0.00016739,2]
[327723863,1716383438926,-1254.98401423,0.00016739,2]
[327723865,1716383438936,-319.39260741,0.00016739,2]
[327723867,1716383438946,-303.8,0.0001674,2]
[327723869,1716383438956,-659.69401485,0.0001674,2]
[327723871,1716383438965,-155.45896805,0.0001674,2]
[327723873,1716383438975,-155.50433289,0.0001674,2]
[327723875,1716383438984,-155.0,0.0001674,2]
[327723877,1716383438995,-769.164027,0.00016986,2]
[327723879,1716383439004,-2424.98634334,0.00017,2]
[327723881,1716383439013,-171.33,0.00017137,2]
[327723883,1716383439023,-1703.5,0.00017354,2]
[327723885,1716383439032,-1643.0,0.00017387,2]
[327723887,1716383439042,-639.439,0.00017387,2]
[327723889,1716383439052,-1225.0,0.00017387,2]
[327723891,1716383439062,-439.0,0.00017387,2]
[327723893,1716383439072,-809.0,0.00017387,2]
[327723895,1716383439082,-445.0,0.00017387,2]
[327723897,1716383439091,-1649.0,0.00017387,2]
[327723899,1716383439101,-215.0,0.00017387,2]
[327723901,1716383439111,-2395.0,0.00017387,2]
[327723903,1716383439120,-150.0,0.00017487,2]
[327723905,1716383439130,-974.0,0.00017487,2]
[327723907,1716383439144,-2161.0,0.00017487,2]
[327723909,1716383439153,-1263.0,0.00017487,2]
[327723911,1716383439162,-226.0,0.00017597,2]
[327723913,1716383439173,-380.39,0.00017742,2]
[327723915,1716383439183,-171.33,0.00017791,2]
[327723917,1716383439192,-769.164027,0.00017808,2]
[327723919,1716383439202,-695.68,0.00017812,2]
[327723921,1716383439212,-522.0,0.00018233,2]
[327723923,1716383439222,-168.45,0.00018434,2]
[327723925,1716383439231,-171.33,0.00018444,2]
[327723927,1716383439242,-769.164027,0.0001863,2]
[327723929,1716383439251,-410.39631753,0.00019,2]
[327723931,1716383439260,-1615.0510207,0.00019,2]
[327723933,1716383439270,-303.8,0.00019004,2]
[327723935,1716383439279,-2774.638,0.00019124,2]
[327723937,1716383439290,-1232.47,0.00019178,2]
[327723939,1716383439300,-205.4874696,0.00019249,2]
[327723941,1716383439310,-6891.47046359,0.0001926,2]
[327723943,1716383439320,-769.164027,0.00019452,2]
[327723945,1716383439329,-326.11337643,0.00019618,2]
[327723947,1716383439338,-155.0,0.0002,4]
[327723949,1716383439348,-5186.20094472,0.0002,2]
[327723950,1716383439358,-401.29778511,0.0002,2]
[327723951,1716383439367,-155.13197663,0.0002,2]
[327723952,1716383439377,-155.0,0.0002,2]
[327723953,1716383439390,-1016.0,0.0002,2]
[327723954,1716383439400,-1643.0,0.00020387,2]
[327723955,1716383439409,-613.0,0.00020387,2]
[327723956,1716383439419,-1225.0,0.00020387,2]
[327723957,1716383439428,-1649.0,0.00020387,2]
[327723958,1716383439438,-215.0,0.00020387,2]
[327723959,1716383439447,-2395.0,0.00020387,2]
[327723960,1716383439457,-346.04,0.00020447,2]
[327723961,1716383439466,-974.0,0.00020487,2]
[327723962,1716383439476,-2161.0,0.00020487,2]
[327723963,1716383439485,-1263.0,0.00020487,2]
[327723964,1716383439495,-303.8,0.00021268,2]
[327723965,1716383439505,-500.0,0.000219,2]
[327723966,1716383439514,-166.21,0.00021918,2]
[327723967,1716383439524,-203.32,0.00021918,2]
[327723968,1716383439533,-163.86,0.00021918,2]
[327723969,1716383439543,-787.61802861,0.00022,2]
[327723970,1716383439656,-423.8575708,0.00022008,2]
[327723971,1716383439674,-160.36674768,0.0002204,2]
[327723972,1716383439684,-361.53668391,0.00022106,2]
[327723973,1716383439694,-155.0,0.00022131,2]
[327723974,1716383439704,-154.49054118,0.00022181,2]
[327723975,1716383439713,-361.53668391,0.00022211,2]
[327723976,1716383439723,-231.08471568,0.00022231,2]
[327723977,1716383439733,-6891.47046359,0.00022237,2]
[327723978,1716383439743,-151.8895225,0.00022293,2]
[327723979,1716383439752,-231.08471568,0.00022318,2]
[327723980,1716383439762,-3726.958,0.00022344,2]
[327723981,1716383439772,-151.97205109,0.00022396,2]
[327723982,1716383439782,-200.88522018,0.00022411,2]
[327723983,1716383439792,-361.53668391,0.00022451,2]
[327723984,1716383439801,-200.88522018,0.00022485,2]
[327723985,1716383439811,-155.46791382,0.00022537,2]
[327723986,1716383439821,-158.89683256,0.00022572,2]
[327723987,1716383439830,-151.8895225,0.00022604,2]
[327723988,1716383439840,-361.53668391,0.00022717,2]
[327723989,1716383439850,-423.8575708,0.00022759,2]
[327723990,1716383439865,-326.11337643,0.00022774,2]
[327723991,1716383439875,-154.49054118,0.00022826,2]
[327723992,1716383439887,-361.53668391,0.0002285,2]
[327723993,1716383439897,-152.98488687,0.00022863,2]
[327723994,1716383439908,-170.28693671,0.00022868,2]
[327723995,1716383439918,-200.88522018,0.00022887,2]
[327723996,1716383439928,-154.21988294,0.00022887,2]
[327723997,1716383439939,-154.49054118,0.00022927,2]
[327723998,1716383439949,-361.53668391,0.00022943,2]
[327724000,1716383439959,-5511.49091993,0.00023,2]
[327724002,1716383439969,-160.07720588,0.00023027,2]
[327724004,1716383439979,-200.88522018,0.00023035,2]
[327724006,1716383439989,-200.88522018,0.00023037,2]
[327724008,1716383439999,-160.0772059,0.00023132,2]
[327724009,1716383440009,-423.8575708,0.00023162,2]
[327724010,1716383440019,-361.53668391,0.0002319,2]
[327724011,1716383440029,-423.8575708,0.00023239,2]
[327724012,1716383440039,-159.36999109,0.00023287,2]
[327724013,1716383440049,-159.36999109,0.00023317,2]
[327724015,1716383440059,-151.8895225,0.00023349,2]
[327724017,1716383440069,-2004.82313321,0.000234,2]
[327724018,1716383440078,-157.97230717,0.00023464,2]
[327724019,1716383440088,-231.08471568,0.00023477,2]
[327724021,1716383440098,-303.8,0.00023532,2]
[327724023,1716383440109,-361.53668391,0.0002354,2]
[327724025,1716383440119,-170.28693671,0.00023545,2]
[327724027,1716383440128,-200.88522018,0.00023587,2]
[327724029,1716383440140,-166.66666665,0.00023614,2]
[327724032,1716383440150,-231.08471568,0.00023715,2]
[327724034,1716383440160,-155.46791382,0.00023759,2]
[327724036,1716383440170,-166.66666666,0.00023839,2]
[327724038,1716383440181,-231.08471568,0.00023897,2]
[327724039,1716383440191,-400.0,0.000239,8]
[327724040,1716383440201,-844.431996,0.00023928,2]
[327724041,1716383440211,-844.431995,0.00023928,2]
[327724042,1716383440221,-844.431995,0.00023928,2]
[327724043,1716383440231,-186.015969,0.00023928,2]
[327724044,1716383440240,-183.896947,0.00023928,2]
[327724045,1716383440249,-235.507659,0.00023928,2]
[327724046,1716383440259,-2102.623739,0.00023928,2]
[327724047,1716383440269,-183.896948,0.00023928,2]
[327724048,1716383440279,-708.992125,0.00023928,2]
[327724049,1716383440288,-186.015969,0.00023928,2]
[327724050,1716383440298,-472.661417,0.00023928,2]
[327724051,1716383440307,-844.431995,0.00023928,2]
[327724052,1716383440317,-166.66666666,0.0002393,2]
[327724053,1716383440327,-159.36999109,0.00023948,2]
[327724054,1716383440336,-152.98488687,0.00023978,2]
[327724055,1716383440346,-361.53668391,0.00023983,2]
[327724056,1716383440356,-433.05694752,0.00024,2]
[327724057,1716383440365,-500.0,0.00024,2]
[327724058,1716383440375,-500.0,0.00024,2]
[327724059,1716383440387,-500.0,0.00024,2]
[327724060,1716383440397,-500.0,0.00024,2]
[327724061,1716383440407,-500.0,0.00024,2]
[327724062,1716383440417,-500.0,0.00024,2]
[327724063,1716383440427,-500.0,0.00024,2]
[327724064,1716383440435,-500.0,0.00024,2]
[327724065,1716383440445,-500.0,0.00024,2]
[327724066,1716383440455,-500.0,0.00024,2]
[327724067,1716383440465,-500.0,0.00024,2]
[327724068,1716383440474,-500.0,0.00024,2]
[327724069,1716383440484,-500.0,0.00024,2]
[327724070,1716383440493,-500.0,0.00024,2]
[327724071,1716383440503,-500.0,0.00024,2]
[327724072,1716383440512,-152.98488687,0.00024009,2]
[327724073,1716383440522,-423.8575708,0.00024009,2]
[327724074,1716383440532,-500.0,0.00024077,2]
[327724075,1716383440541,-500.0,0.00024077,2]
[327724076,1716383440551,-500.0,0.00024077,2]
[327724077,1716383440560,-500.0,0.00024077,2]
[327724078,1716383440570,-500.0,0.00024077,2]
[327724079,1716383440579,-500.0,0.00024077,2]
[327724080,1716383440590,-500.0,0.00024077,2]
[327724081,1716383440600,-500.0,0.00024077,2]
[327724082,1716383440609,-500.0,0.00024077,2]
[327724083,1716383440619,-500.0,0.00024077,2]
[327724084,1716383440629,-500.0,0.00024077,2]
[327724085,1716383440641,-500.0,0.00024077,2]
[327724086,1716383440651,-500.0,0.00024077,2]
[327724087,1716383440661,-500.0,0.00024077,2]
[327724088,1716383440670,-500.0,0.00024077,2]
[327724089,1716383440679,-500.0,0.00024077,2]
[327724090,1716383440688,-500.0,0.00024077,2]
[327724091,1716383440697,-500.0,0.00024077,2]
[327724092,1716383440706,-500.0,0.00024077,2]
[327724094,1716383440716,-500.0,0.00024077,2]
[327724095,1716383440725,-500.0,0.00024077,2]
[327724097,1716383440735,-500.0,0.00024077,2]
[327724099,1716383440744,-500.0,0.00024077,2]
[327724101,1716383440754,-500.0,0.00024077,2]
[327724102,1716383440763,-500.0,0.00024077,2]